Workbook

Sheet Instructions
A1: How to use the Utility?
A3: Objective | B3: The Utility provides an easy way to quickly determine whether States would be better off or worse off by waiving stamp duty for low value housing.
B4: While States would lose stamp duty revenues, they will make it up through non-stamp duty revenues on housing created by the Central scheme, PMAY.
A6: Steps in using the Utility
A7: 1 | B7: Change necessary inputs listed in the tab <User Inputs>.
B8: Start with the State that you want the analysis for.
B9: The housing shortage in that State and SD revenue as % of GSDP of the State are auto-populated based on publicly available data.
B10: All other inputs can be changed by sliding the slidebar on the right of the input. The key inputs here are: Percentage of housing that will be created solely by PMAY
B11: and percentage of housing created under the other 3 verticals that would generate non-SD revenue for the State.
A13: 2 | B13: Outputs are displayed in the tabs <Output (Do not change)> and <Model Working (Do not change)>.
B14: The net gain/loss to the State of fully waiving the SD for low value housing is displayed both in aggregate (from now till 2021-22) as well as in present value terms.
B15: It is also displayed in the tab <User Inputs> at the top to provide a quick summary of whether it makes sense for the State to waive SD or not.
B16: Summary for the alternative proposal, i.e., giving SD rebates to all and not just to those who transact in low value housing, is also provided.
B17: The maximum rebate rate is computed based on uniform reduction in rates across all value categories.
B18: The tab <Model Working (Do not change)> presents a detailed step-by-step computation of the impact of the revenue neutral proposal.
A20: 3 | B20: All tabs after <Input Data (Do not change)> hold data used in the computation of the impact of the proposal.
B21: They are obtained from various sources which have been displayed at the end of each tab.
B22: Unless the user is absolutely sure about their data, it is best that they don't change the data that is already in these tabs.

Sheet User Inputs
D3: Karnataka
C6: Net revenue gain/loss to the State from waiving stamp duty fully for low value housing (Rs. Cr.) | D6: ='Output (Do not change)'!B11 -> 640.4459417
B9: Inputs (User to enter) | I9: 0
B11: A | C11: Housing Shortage to be covered by 2021-22 in the State (auto-populated) | D11: =VLOOKUP($D$3,'Housing Shortage by State'!$A$2:$B$27,2,0) -> 510000
B12: B | C12: Percentage of housing shortage to be met by HFA | D12: =$N$12/1000 -> 0.96 | N12: 960
B13: C | C13: Percentage of houses that will be created under CLSS (solely because of PMAY) | D13: =$N$13/1000 -> 0.135 | N13: 135
B14: D | C14: Percentage of houses created under PMAY verticals other than CLSS that would generate non-SD revenue | D14: =$N$14/1000 -> 0.5 | N14: 500
B17: E | C17: Current SD+RC (including on mortgage where applicable) rate in the State | D17: =IF(($O$17=0),$N$17,$O$17/1000) -> 0.076 | N17: =VLOOKUP(D3,'Current SD+RC Rate by State'!$A$2:$B$34,2,0) -> 0.076 | O17: 0
B18: F | C18: SD Revenue for State as pct of GSDP (auto populated) | D18: =VLOOKUP(D3,'SD as Pct of GSDP'!$A$2:$B$32,2,0) -> 0.0105235323
B19: G | C19: Percent of SD+RC revenue derived from low value housing | D19: =$N$19/1000 -> 0.06 | N19: 60
B20: H | C20: Non-SD revenue generated from new housing stock by the State | D20: =$N$20/1000 -> 0.119 | N20: 119
B23: I | C23: Average value of a house being built | D23: =$N$23*1000 -> 1500000 | N23: 1500

Sheet Output (Do not change)
A2: Outputs (Automatically Created)
A4: Main Proposal: Waive all stamp duty for low value housing
B5: 2017-18 | C5: 2018-19 | D5: 2019-20 | E5: 2020-21 | F5: 2021-22
A6: Incremental Revenue from Housing Stock Created by PMAY (Rs. Cr.) | B6: ='Model Working (Do not change)'!D67 -> 991.91736 | C6: ='Model Working (Do not change)'!E67 -> 991.91736 | D6: ='Model Working (Do not change)'!F67 -> 991.91736 | E6: ='Model Working (Do not change)'!G67 -> 991.91736 | F6: ='Model Working (Do not change)'!H67 -> 991.91736 | G6: =SUM(B6:F6) -> 4959.5868
A7: Loss of SD Revenues from Waiving SD for Low Value Housing (Rs. Cr.) | B7: ='Model Working (Do not change)'!D65+'Model Working (Do not change)'!D66 -> -744.4578302 | C7: ='Model Working (Do not change)'!E65+'Model Working (Do not change)'!E66 -> -790.6500072 | D7: ='Model Working (Do not change)'!F65+'Model Working (Do not change)'!F66 -> -841.3596559 | E7: ='Model Working (Do not change)'!G65+'Model Working (Do not change)'!G66 -> -896.9798266 | F7: ='Model Working (Do not change)'!H65+'Model Working (Do not change)'!H66 -> -956.7812339 | G7: =SUM(B7:F7) -> -4230.228554
A8: Net gain/loss for the State (Rs. Cr.) | B8: =SUM(B6:B7) -> 247.4595298 | C8: =SUM(C6:C7) -> 201.2673528 | D8: =SUM(D6:D7) -> 150.5577041 | E8: =SUM(E6:E7) -> 94.93753342 | F8: =SUM(F6:F7) -> 35.13612611 | G8: 729.3582463
G9: =B11 -> 640.4459417
A10: Total gain/loss until 2021-22 (Rs. Cr.) | B10: =SUM(B8:F8) -> 729.3582463
A11: Present value (@6% Discount Rate) of the Total gain | B11: ='Model Working (Do not change)'!D72 -> 640.4459417
A14: Alternative Proposal: Provide SD rebate for all housing transactions
B15: 2017-18 | C15: 2018-19 | D15: 2019-20 | E15: 2020-21 | F15: 2021-22
A16: Average SD Rate Rebate (%) | B16: ='Model Working (Do not change)'!D86 -> 0.09873084676 | C16: ='Model Working (Do not change)'!E86 -> 0.09170366413 | D16: ='Model Working (Do not change)'!F86 -> 0.08505761213 | E16: ='Model Working (Do not change)'!G86 -> 0.07879417296 | F16: ='Model Working (Do not change)'!H86 -> 0.07301345644

Sheet Model Working (Do not change)
C33: GSDP and SD Projections (In Rs. '000 Crore)
C34: 2017-18 | D34: 2018-19 | E34: 2019-20 | F34: 2020-21 | G34: 2021-22
B35: GDP | C35: =VLOOKUP(C$34,'GDP and GSDP by State'!$A$10:$C$15,2,0) -> 13012 | D35: =VLOOKUP(D$34,'GDP and GSDP by State'!$A$10:$C$15,2,0) -> 13962 | E35: =VLOOKUP(E$34,'GDP and GSDP by State'!$A$10:$C$15,2,0) -> 15005 | F35: =VLOOKUP(F$34,'GDP and GSDP by State'!$A$10:$C$15,2,0) -> 16149 | G35: =VLOOKUP(G$34,'GDP and GSDP by State'!$A$10:$C$15,2,0) -> 17379
B36: GSDP | C36: =C35*0.077-61.557 -> 940.367 | D36: =VLOOKUP(D$34,'GDP and GSDP by State'!$A$10:$C$15,3,0) -> 1013.523959 | E36: =VLOOKUP(E$34,'GDP and GSDP by State'!$A$10:$C$15,3,0) -> 1093.835473 | F36: =VLOOKUP(F$34,'GDP and GSDP by State'!$A$10:$C$15,3,0) -> 1181.924036 | G36: =VLOOKUP(G$34,'GDP and GSDP by State'!$A$10:$C$15,3,0) -> 1276.634642
B37: SD Revenues (all transactions) | C37: =C36*'User Inputs'!$D$18 -> 9.895982503 | D37: =D36*'User Inputs'!$D$18 -> 10.66585212 | E37: =E36*'User Inputs'!$D$18 -> 11.51101293 | F37: =F36*'User Inputs'!$D$18 -> 12.43801578 | G37: =G36*'User Inputs'!$D$18 -> 13.4347059
B38: SD Revenues (low value transactions) | C38: =C37*'User Inputs'!$D$19 -> 0.5937589502 | D38: =D37*'User Inputs'!$D$19 -> 0.6399511272 | E38: =E37*'User Inputs'!$D$19 -> 0.6906607759 | F38: =F37*'User Inputs'!$D$19 -> 0.7462809466 | G38: =G37*'User Inputs'!$D$19 -> 0.8060823539 | J38: Potential loss of revenues if Stamp Duty is waived for low value transactions
B44: Item | C44: Total Housing Stock to be created by 2021-22 | D44: Annual Housing Stock to be created
B45: Housing Shortage to be covered by 2021-22 | C45: ='User Inputs'!D11 -> 510000 | D45: =C45/5 -> 102000
B46: Percentage of housing shortage to be met by HFA | C46: =C45*'User Inputs'!D12 -> 489600 | D46: =C46/5 -> 97920 | H46: =53000/C46 -> 0.108251634 | J46: 52922 | K46: =J46/4 -> 13230.5
B47: Percentage of houses that will be created under CLSS (5% of all housing created by PMAY) | C47: =C46*'User Inputs'!$D$13 -> 66096 | D47: =C47/5 -> 13219.2 | F47: Our focus is on these houses as they would generate additional revenue to the State | H47: =J46+K46 -> 66152.5 | I47: =H47/C46 -> 0.1351154003
B48: Percentage of houses that will be created under other schemes of PMAY (95 percent of all housing created by PMAY) | C48: =C46*(1-'User Inputs'!$D$13) -> 423504 | D48: =C48/5 -> 84700.8
B49: Percentage of houses that will be created solely because of PMAY (100% of CLSS + 50% of all other verticals) | C49: =C47*100%+C48*50% -> 277848 | D49: =D47*100%+D48*50% -> 55569.6
B54: ="Incremental revenues generated by housing stock created under PMAY in Crores (Average value per house = Rs. "&'User Inputs'!$D$23&")" -> Incremental revenues generated by housing stock created under PMAY in Crores (Average value per house = Rs. 1500000)
D55: Total Value of Housing Stock to be created by 2021-22 | E55: Total Value of Housing Stock to be created each year | F55: Incremental SD Revenue/year (Rs. Cr.) | G55: Incremental Non-SD Revenue/year (Rs. Cr.) | H55: Total Incremental Revenue/year (Rs. Cr.)
B56: Incremental revenues to the State from housing stock created under CLSS (solely due to PMAY) | D56: ='User Inputs'!$D$23*C47/10000000 -> 9914.4 | E56: ='User Inputs'!$D$23*D47/10000000 -> 1982.88 | F56: =E56*'User Inputs'!$D$17 -> 150.69888 | G56: =E56*'User Inputs'!$D$20 -> 235.96272 | H56: =F56+G56 -> 386.6616
B57: Incremental revenues to the State from housing stock created under other 3 verticals (solely due to PMAY) | D57: ='User Inputs'!$D$23*C48/10000000 -> 63525.6 | E57: ='User Inputs'!$D$23*D48/10000000 -> 12705.12 | G57: =E57*'User Inputs'!$D$20*'User Inputs'!$D$14 -> 755.95464 | H57: =F57+G57 -> 755.95464
B63: Revenue Gain/Loss from Stamp Duty Waiver to All Low Value Housing (Rs. Crores)
D64: 2017-18 | E64: 2018-19 | F64: 2019-20 | G64: 2020-21 | H64: 2021-22
B65: Loss of SD Revenues from Existing Low Value Transactions | D65: =-C38*1000 -> -593.7589502 | E65: =-D38*1000 -> -639.9511272 | F65: =-E38*1000 -> -690.6607759 | G65: =-F38*1000 -> -746.2809466 | H65: =-G38*1000 -> -806.0823539
B66: Loss of SD Revenues from Incremental Housing Stock Created under PMAY | D66: =-$F$56 -> -150.69888 | E66: =-$F$56 -> -150.69888 | F66: =-$F$56 -> -150.69888 | G66: =-$F$56 -> -150.69888 | H66: =-$F$56 -> -150.69888
B67: Gain in Non-SD Revenues from Incremental Housing Stock Created under PMAY | D67: =$G$56+$G$57 -> 991.91736 | E67: =$G$56+$G$57 -> 991.91736 | F67: =$G$56+$G$57 -> 991.91736 | G67: =$G$56+$G$57 -> 991.91736 | H67: =$G$56+$G$57 -> 991.91736
B68: Net Gain/Loss in Revenues to the State | D68: =SUM(D65:D67) -> 247.4595298 | E68: =SUM(E65:E67) -> 201.2673528 | F68: 150.5577041 | G68: 94.93753342 | H68: 35.13612611
D70: (in Rs. Crores)
B71: Total Net Gain/Loss to the State | D71: =SUM(D68:H68) -> 729.3582463
B72: Present Value (@6% Discount Rate) of the Total Net Gain/Loss to the State | D72: =NPV(0.06,D68:H68) -> 640.4459417
B78: Uniform Reduction in Stamp Duty Rate Across All Value Categories
D79: 2017-18 | E79: 2018-19 | F79: 2019-20 | G79: 2020-21 | H79: 2021-22
B80: Gain in Non-SD Revenues from Incremental Housing Stock Created under PMAY (Rs. Cr.) | D80: =D67 -> 991.91736 | E80: =E67 -> 991.91736 | F80: 991.91736 | G80: 991.91736 | H80: 991.91736
B82: Baseline SD Revenues from all existing transactions (Rs. Cr.) | D82: =C37*1000 -> 9895.982503 | E82: =D37*1000 -> 10665.85212 | F82: =E37*1000 -> 11511.01293 | G82: =F37*1000 -> 12438.01578 | H82: =G37*1000 -> 13434.7059
B83: Incremental SD Revenues from Housing Stock Created by PMAY (Rs. Cr.) | D83: =$F$56 -> 150.69888 | E83: =$F$56 -> 150.69888 | F83: 150.69888 | G83: 150.69888 | H83: 150.69888
B84: Total SD Revenues for the State from Housing (Rs. Cr.) | D84: =SUM(D82:D83) -> 10046.68138 | E84: =SUM(E82:E83) -> 10816.551 | F84: 11661.71181 | G84: 12588.71466 | H84: 13585.40478
B86: Average SD Rate Rebate (%) | D86: =D80/D84 -> 0.09873084676 | E86: =E80/E84 -> 0.09170366413 | F86: 0.08505761213 | G86: 0.07879417296 | H86: 0.07301345644

Sheet Input Data (Do not change) -->
B4: All the spreadsheets beyond this tab have key input data.
B6: They should not be altered unless users are sure about the accuracy of the data

Sheet Housing Shortage by State
A1: States | B1: Housing Shortage
A2: Andhra Pradesh | B2: 635000
A3: Arunachal Pradesh | B3: 15000
A4: Assam | B4: 140000
A5: Bihar | B5: 595000
A6: Chattisgarh | B6: 175000
A7: Delhi | B7: 245000
A8: Jammu & Kashmir | B8: 65000
A9: Jharkhand | B9: 315000
A10: Maharashtra | B10: 970000
A11: Karnataka | B11: 510000
A12: Gujarat | B12: 495000
A13: Haryana | B13: 210000
A14: Himachal Pradesh | B14: 20000
A15: Manipur | B15: 40000
A16: Meghalaya | B16: 15000
A17: Nagaland | B17: 105000
A18: Odisha | B18: 205000
A19: Puducherry | B19: 35000
A20: Punjab | B20: 195000
A21: Rajasthan | B21: 575000
A22: Sikkim | B22: 5000
A23: Tamil Nadu | B23: 625000
A24: Tripura | B24: 15000
A25: Uttar Pradesh | B25: 1535000
A26: Uttarakhand | B26: 80000
A27: West Bengal | B27: 665000
A30: Source: Numbers from the Report of the Technical Group on Urban Housing Shortage (MHUPA, Government of India (2012)), are adjusted proportionately to reflect new Government estimates.

Sheet CLSSStateWiseJun2020-MoHUA
B1: LIG | F1: MIG | J1: Total | M1: Ticket Size (INR) | P1: Est Cost of House (@85% LTV) (INR Lakh)
A2: State (A) | B2: Loan Amount (Cr) (B) | C2: Central Subsidy (Cr) (C ) | D2: No. of Beneficiaries (D) | E2: % of Tot Beneficiaries | F2: Loan Amount (Cr) ( E ) | G2: Central Subsidy (Cr) (F) | H2: No. of Beneficiaries (G) | I2: % of Tot Beneficiaries | J2: Loan Amount (Cr) (H) | K2: Central Subsidy (Cr) (I) | L2: No. of Beneficiaries (J) | M2: LIG (K=B/D) | N2: MIG (L=E/G) | O2: Overall (Lakh) (M=H/J) | P2: LIG (N=K/0.85) | Q2: MIG (O=L/0.85) | R2: Overall (P=M/0.85)
A3: Andhra Pradesh | B3: 1672.67 | C3: 292.88 | D3: 12588 | E3: =D3/L3 -> 0.4518305815 | F3: 3076.09 | G3: 315.01 | H3: 15272 | I3: =H3/L3 -> 0.5481694185 | J3: 4748.76 | K3: 607.89 | L3: 27860 | M3: =(B3/D3)*10000000 -> 1328781.379 | N3: =(F3/H3)*10000000 -> 2014202.462 | O3: =(J3/L3)*10000000 -> 1704508.256 | P3: =M3/0.85 -> 1563272.211 | Q3: =N3/0.85 -> 2369649.955 | R3: =O3/0.85 -> 2005303.83
A4: Bihar | B4: 536.34 | C4: 120.96 | D4: 5373 | E4: 0.5421796165 | F4: 758.81 | G4: 90.83 | H4: 4537 | I4: 0.4578203835 | J4: 1295.15 | K4: 211.8 | L4: 9910 | M4: 998213.2887 | N4: 1672492.837 | O4: 1306912.21 | P4: 1174368.575 | Q4: 1967638.631 | R4: 1537543.776
A5: Chattisgarh | B5: 818.25 | C5: 202.4 | D5: 10467 | E5: 0.7441347931 | F5: 577.2 | G5: 70.48 | H5: 3599 | I5: 0.2558652069 | J5: 1395.45 | K5: 272.89 | L5: 14066 | M5: 781742.6197 | N5: 1603778.827 | O5: 992073.084 | P5: 919697.1996 | Q5: 1886798.621 | R5: 1167144.805
A6: Goa | B6: 76.31 | C6: 11.88 | D6: 484 | E6: 0.4140290847 | F6: 176.41 | G6: 15.03 | H6: 685 | I6: 0.5859709153 | J6: 252.73 | K6: 26.91 | L6: 1169 | M6: 1576652.893 | N6: 2575328.467 | O6: 2161933.276 | P6: 1854885.756 | Q6: 3029798.197 | R6: 2543450.913
A7: Gujarat | B7: 24968.66 | C7: 5551.91 | D7: 229501 | E7: 0.8576046217 | F7: 7724.57 | G7: 816.56 | H7: 38106 | I7: 0.1423953783 | J7: 32693.23 | K7: 6368.48 | L7: 267607 | M7: 1087954.301 | N7: 2027126.962 | O7: 1221688.147 | P7: 1279946.236 | Q7: 2384855.249 | R7: 1437280.173
A8: Haryana | B8: 1059.19 | C8: 232.28 | D8: 10255 | E8: 0.4744170984 | F8: 2273.52 | G8: 227.33 | H8: 11361 | I8: 0.5255829016 | J8: 3332.71 | K8: 459.61 | L8: 21616 | M8: 1032852.267 | N8: 2001161.87 | O8: 1541779.238 | P8: 1215120.314 | Q8: 2354308.082 | R8: 1813857.927 | T8: Computations for Karnataka
A9: Himachal Pradesh | B9: 50.11 | C9: 10.85 | D9: 506 | E9: 0.5743473326 | F9: 64.03 | G9: 7.72 | H9: 375 | I9: 0.4256526674 | J9: 114.14 | K9: 18.58 | L9: 881 | M9: 990316.2055 | N9: 1707466.667 | O9: 1295573.212 | P9: 1165077.889 | Q9: 2008784.314 | R9: 1524203.779 | T9: Total Sanctioned (A, from MoHuA Data) - Jum - 2020 | U9: =L11 -> 52922
A10: Jharkhand | B10: 434.39 | C10: 85.62 | D10: 3867 | E10: 0.4583926031 | F10: 797.74 | G10: 86.6 | H10: 4569 | I10: 0.5416073969 | J10: 1232.12 | K10: 172.22 | L10: 8436 | M10: 1123325.575 | N10: 1745983.804 | O10: 1460550.024 | P10: 1321559.5 | Q10: 2054098.593 | R10: 1718294.146 | T10: Avg CLSS/Yr over past 4 Yrs (B=A/4) | U10: 13230.5
A11: Kamataka | B11: 1930.92 | C11: 375.43 | D11: 16900 | E11: 0.3193378935 | F11: 9477.09 | G11: 767.11 | H11: 36022 | I11: 0.6806621065 | J11: 11408.01 | K11: 1142.54 | L11: 52922 | M11: 1142556.213 | N11: 2630917.217 | O11: 2155627.149 | P11: 1344183.78 | Q11: 3095196.726 | R11: 2536031.94 | T11: Avg CLSS Monthly (C=B/12) | U11: 1102.541667
A12: Kerala | B12: 875.69 | C12: 258.62 | D12: 12439 | E12: 0.7941138917 | F12: 611.86 | G12: 65.99 | H12: 3225 | I12: 0.2058861083 | J12: 1487.54 | K12: 324.61 | L12: 15664 | M12: 703987.4588 | N12: 1897240.31 | O12: 949655.2605 | P12: 828220.5398 | Q12: 2232047.424 | R12: 1117241.483 | T12: MIG % (D, from MoHUA Data) | U12: 0.6806621065
A13: Madhya Pradesh | B13: 4395.51 | C13: 1137.42 | D13: 50835 | E13: 0.8022187855 | F13: 1970.14 | G13: 247.76 | H13: 12533 | I13: 0.1977812145 | J13: 6365.65 | K13: 1385.17 | L13: 63368 | M13: 864662.1422 | N13: 1571962.02 | O13: 1004552.771 | P13: 1017249.579 | Q13: 1849367.083 | R13: 1181826.79 | T13: LIG % (E, from MoHUA Data) | U13: 0.3193378935
A14: Maharashtra | B14: 25060.17 | C14: 4448.26 | D14: 183056 | E14: 0.6941748861 | F14: 21563.3 | G14: 1765.76 | H14: 80647 | I14: 0.3058251139 | J14: 46623.46 | K14: 6214.03 | L14: 263703 | M14: 1368989.271 | N14: 2673788.238 | O14: 1768029.184 | P14: 1610575.613 | Q14: 3145633.221 | R14: 2080034.335 | T14: MIG Projected Over remaining Plan Period (Jul '20 - Mar '21) F = C*D*9 months | U14: 6754.125
A15: Odisha | B15: 216.56 | C15: 49.47 | D15: 2548 | E15: 0.4420541291 | F15: 590.97 | G15: 61.63 | H15: 3216 | I15: 0.5579458709 | J15: 807.52 | K15: 111.11 | L15: 5764 | M15: 849921.5071 | N15: 1837593.284 | O15: 1400971.548 | P15: 999907.6554 | Q15: 2161874.451 | R15: 1648201.821 | T15: LIG Projected Over remaining Plan Period (Jul '20 - Mar '22) G = C*E*21 months | U15: 7393.75
A16: Punjab | B16: 1192.19 | C16: 262.88 | D16: 11467 | E16: 0.6140623327 | F16: 1329.14 | G16: 151.23 | H16: 7207 | I16: 0.3859376673 | J16: 2521.33 | K16: 414.11 | L16: 18674 | M16: 1039670.358 | N16: 1844234.772 | O16: 1350182.071 | P16: 1223141.598 | Q16: 2169687.967 | R16: 1588449.496 | T16: Projection (Total) H = F+G | U16: =U15+U14 -> 14147.875
A17: Rajasthan | B17: 3461.06 | C17: 839.23 | D17: 40015 | E17: 0.7227620837 | F17: 2650.06 | G17: 306.65 | H17: 15349 | I17: 0.2772379163 | J17: 6111.12 | K17: 1145.88 | L17: 55364 | M17: 864940.6473 | N17: 1726535.931 | O17: 1103807.528 | P17: 1017577.232 | Q17: 2031218.742 | R17: 1298597.092 | T17: Sanctioned + Projected I = A+H | U17: 67069.875
A18: Tamil Nadu | B18: 2893.72 | C18: 577.83 | D18: 26452 | E18: 0.5209342629 | F18: 5367.86 | G18: 495.73 | H18: 24326 | I18: 0.4790657371 | J18: 8261.58 | K18: 1073.56 | L18: 50778 | M18: 1093951.308 | N18: 2206634.876 | O18: 1626999.882 | P18: 1287001.539 | Q18: 2596041.031 | R18: 1914117.508 | T18: Total Demand J | U18: 510000
A19: Telangana | B19: 1743.3 | C19: 300.66 | D19: 12454 | E19: 0.3125062732 | F19: 6445.91 | G19: 586.91 | H19: 27398 | I19: 0.6874937268 | J19: 8189.21 | K19: 887.57 | L19: 39852 | M19: 1399791.232 | N19: 2352693.627 | O19: 2054905.651 | P19: 1646813.214 | Q19: 2767874.856 | R19: 2417536.06 | T19: 96% of Total Demand K=J*96% | U19: =U18*96% -> 489600
A20: Uttar Pradesh | B20: 4188.81 | C20: 873.37 | D20: 38123 | E20: 0.4986918871 | F20: 7677.11 | G20: 777.32 | H20: 38323 | I20: 0.5013081129 | J20: 11865.92 | K20: 1650.68 | L20: 76446 | M20: 1098761.902 | N20: 2003264.358 | O20: 1552196.322 | P20: 1292661.061 | Q20: 2356781.598 | R20: 1826113.32 | T20: % of Total L = I/K | U20: =U17/U19 -> 0.1369891238
A21: Uttarakhand | B21: 569.09 | C21: 135.09 | D21: 6141 | E21: 0.6538543441 | F21: 536.55 | G21: 64.89 | H21: 3251 | I21: 0.3461456559 | J21: 1105.64 | K21: 199.97 | L21: 9392 | M21: 926705.7482 | N21: 1650415.257 | O21: 1177214.651 | P21: 1090242.057 | Q21: 1941665.008 | R21: 1384958.413 | T21: We round off 14,148 to 14,200 and 13.7% to 13.5% for our computation purpose
A22: West Bengal | B22: 2372.29 | C22: 465.5 | D22: 19527 | E22: 0.5746277441 | F22: 2895.63 | G22: 299.26 | H22: 14455 | I22: 0.4253722559 | J22: 5267.91 | K22: 764.77 | L22: 33982 | M22: 1214876.837 | N22: 2003203.044 | O22: 1550205.991 | P22: 1429266.867 | Q22: 2356709.463 | R22: 1823771.755
A23: Sub-Total | B23: 78515.22 | C23: 16232.55 | D23: 692998 | E23: 0.667979496 | F23: 76563.97 | G23: 7219.83 | H23: 344456 | I23: 0.332020504 | J23: 155079.19 | K23: 23452.38 | L23: 1037454 | M23: 1132979.027 | N23: 2222750.366 | O23: 1494805.456 | P23: 1332916.503 | Q23: 2615000.43 | R23: 1758594.655
A24: Arunachal Pradesh | B24: 0.5 | C24: 0.11 | D24: 6 | E24: 0.1578947368 | F24: 5.52 | G24: 0.68 | H24: 32 | I24: 0.8421052632 | J24: 6.02 | K24: 0.79 | L24: 38 | M24: 833333.3333 | N24: 1725000 | O24: 1584210.526 | P24: 980392.1569 | Q24: 2029411.765 | R24: 1863777.09
A25: Assam | B25: 69.99 | C25: 15.73 | D25: 760 | E25: 0.4567307692 | F25: 154.54 | G25: 17.53 | H25: 904 | I25: 0.5432692308 | J25: 224.53 | K25: 33.26 | L25: 1664 | M25: 920921.0526 | N25: 1709513.274 | O25: 1349338.942 | P25: 1083436.533 | Q25: 2011192.087 | R25: 1587457.579
A26: Manipur | B26: 8.69 | C26: 2.69 | D26: 160 | E26: 0.9090909091 | F26: 1.94 | G26: 0.33 | H26: 16 | I26: 0.09090909091 | J26: 10.62 | K26: 3.03 | L26: 176 | M26: 543125 | N26: 1212500 | O26: 603409.0909 | P26: 638970.5882 | Q26: 1426470.588 | R26: 709893.0481
A27: Meghalaya | B27: 7.73 | C27: 2.21 | D27: 122 | E27: 0.8243243243 | F27: 3.74 | G27: 0.46 | H27: 26 | I27: 0.1756756757 | J27: 11.47 | K27: 2.67 | L27: 148 | M27: 633606.5574 | N27: 1438461.538 | O27: 775000 | P27: 745419.4793 | Q27: 1692307.692 | R27: 911764.7059
A28: Mizoram | B28: 59.08 | C28: 16.29 | D28: 915 | E28: 0.8988212181 | F28: 10.31 | G28: 1.65 | H28: 103 | I28: 0.1011787819 | J28: 69.39 | K28: 17.95 | L28: 1018 | M28: 645683.0601 | N28: 1000970.874 | O28: 681630.6483 | P28: 759627.1295 | Q28: 1177612.793 | R28: 801918.4098
A29: Nagaland | B29: 1.09 | C29: 0.29 | D29: 16 | E29: 0.5925925926 | F29: 0.81 | G29: 0.17 | H29: 11 | I29: 0.4074074074 | J29: 1.9 | K29: 0.46 | L29: 27 | M29: 681250 | N29: 736363.6364 | O29: 703703.7037 | P29: 801470.5882 | Q29: 866310.1604 | R29: 827886.7102
A30: Sikkim | B30: 2.58 | C30: 0.66 | D30: 30 | E30: 0.7894736842 | F30: 1.25 | G30: 0.15 | H30: 8 | I30: 0.2105263158 | J30: 3.83 | K30: 0.82 | L30: 38 | M30: 860000 | N30: 1562500 | O30: 1007894.737 | P30: 1011764.706 | Q30: 1838235.294 | R30: 1185758.514
A31: Tripura | B31: 50.6 | C31: 12.79 | D31: 604 | E31: 0.5869776482 | F31: 62.93 | G31: 8.22 | H31: 425 | I31: 0.4130223518 | J31: 113.53 | K31: 21.01 | L31: 1029 | M31: 837748.3444 | N31: 1480705.882 | O31: 1103304.179 | P31: 985586.2875 | Q31: 1742006.92 | R31: 1298004.916
A32: Sub-Total (NE) | B32: 200.25 | C32: 50.78 | D32: 2613 | E32: 0.6314644756 | F32: 241.05 | G32: 29.2 | H32: 1525 | I32: 0.3685355244 | J32: 441.3 | K32: 79.98 | L32: 4138 | M32: 766360.5052 | N32: 1580655.738 | O32: 1066457.226 | P32: 901600.5943 | Q32: 1859594.986 | R32: 1254655.56
A33: A&N Island | B33: 0.17 | C33: 0.05 | D33: 3 | E33: 1 | I33: 0 | J33: 0.17 | K33: 0.05 | L33: 3 | M33: 566666.6667 | O33: 566666.6667 | P33: 666666.6667 | Q33: 0 | R33: 666666.6667
A34: Chandigarh | B34: 31.4 | C34: 5.03 | D34: 214 | E34: 0.3322981366 | F34: 111.75 | G34: 9.42 | H34: 430 | I34: 0.6677018634 | J34: 143.15 | K34: 14.45 | L34: 644 | M34: 1467289.72 | N34: =(F34/H34)*10000000 -> 2598837.209 | O34: 2222826.087 | P34: 1726223.2 | Q34: 3057455.54 | R34: 2615089.514
A35: DNH and DD | B35: 273.54 | C35: 68.16 | D35: 2894 | E35: 0.8973643411 | F35: 52.63 | G35: 6.61 | H35: 331 | I35: 0.1026356589 | J35: 326.16 | K35: 74.77 | L35: 3225 | M35: 945196.9592 | N35: =(F35/H35)*10000000 -> 1590030.211 | O35: 1011348.837 | P35: 1111996.423 | Q35: 1870623.778 | R35: 1189822.161
A36: NCR | B36: 1394.23 | C36: 236.63 | D36: 9821 | E36: 0.4897765809 | F36: 2440.48 | G36: 217.1 | H36: 10231 | I36: 0.5102234191 | J36: 3834.71 | K36: 453.73 | L36: 20052 | M36: 1419641.584 | N36: =(F36/H36)*10000000 -> 2385377.773 | O36: 1912382.805 | P36: 1670166.57 | Q36: 2806326.792 | R36: 2249862.123
A37: J&K | B37: 78.73 | C37: 26.76 | D37: 1304 | E37: 0.844012945 | F37: 30.44 | G37: 4.27 | H37: 241 | I37: 0.155987055 | J37: 109.17 | K37: 31.03 | L37: 1545 | M37: 603757.6687 | N37: =(F37/H37)*10000000 -> 1263070.539 | O37: 706601.9417 | P37: 710303.1397 | Q37: 1485965.34 | R37: 831296.4021
A38: Ladakh | B38: 1.52 | C38: 0.44 | D38: 47 | E38: 0.7704918033 | F38: 0.36 | G38: 0.06 | H38: 14 | I38: 0.2295081967 | J38: 1.88 | K38: 0.49 | L38: 61 | M38: 323404.2553 | N38: =(F38/H38)*10000000 -> 257142.8571 | O38: 308196.7213 | P38: 380475.5945 | Q38: 302521.0084 | R38: 362584.378
A39: Lakshadweep
A40: Puducherry | B40: 35.42 | C40: 7.61 | D40: 364 | E40: =D40/L40 -> 0.5083798883 | F40: 66.16 | G40: 6.76 | H40: 352 | I40: =H40/L40 -> 0.4916201117 | J40: 101.57 | K40: 14.37 | L40: 716 | M40: =(B40/D40)*10000000 -> 973076.9231 | N40: =(F40/H40)*10000000 -> 1879545.455 | O40: =(J40/L40)*10000000 -> 1418575.419 | P40: =M40/0.85 -> 1144796.38 | Q40: 2211229.947 | R40: 1668912.258
A41: Sub-total (UT) | B41: 1815 | C41: 344.68 | D41: 14647 | E41: =D41/L41 -> 0.558065991 | F41: 2701.81 | G41: 244.21 | H41: 11599 | I41: =H41/L41 -> 0.441934009 | J41: 4516.81 | K41: 588.89 | L41: 26246 | M41: =(B41/D41)*10000000 -> 1239161.603 | N41: =(F41/H41)*10000000 -> 2329347.358 | O41: =(J41/L41)*10000000 -> 1720951.764 | P41: 1457837.18 | Q41: 2740408.656 | R41: 2024649.134
A42: Grand Total | B42: 80530.47 | C42: 16628.01 | D42: 710258 | E42: =D42/L42 -> 0.665136472 | F42: 79506.83 | G42: 7493.24 | H42: 357580 | I42: =H42/L42 -> 0.334863528 | J42: 160037.3 | K42: 24121.25 | L42: 1067838 | M42: =(B42/D42)*10000000 -> 1133819.964 | N42: =(F42/H42)*10000000 -> 2223469.713 | O42: =(J42/L42)*10000000 -> 1498703.923 | P42: 1333905.84 | Q42: 2615846.721 | R42: 1763181.086

Sheet GSDP by State
B1: GSDP in ('000 Crore)
A2: States/UTs | B2: 2011-12 | C2: 2012-13 | D2: 2013-14 | E2: 2014-15 | F2: 2015-16 | G2: 2016-17
A3: Andaman and Nicobar Islands | B3: 3.978669145 | C3: 4.156713268 | D3: 4.488614697 | E3: 4.741856344 | F3: 5.133189571 | G3: 5.5659
A4: Andhra Pradesh | B4: 379.40158 | C4: 380.6290107 | D4: 407.1147424 | E4: 441.7411806 | F4: 490.1340905 | G4: 547.02145
A5: Arunachal Pradesh | B5: 11.06269 | C5: 11.29917 | D5: 12.33834 | E5: 14.40296 | F5: 16.66248 | G5: 17.30344
A6: Assam | B6: 143.17491 | C6: 147.34238 | D6: 154.5254 | E6: 165.2123027 | F6: 178.9296435 | G6: 200.79
A7: Bihar | B7: 247.1439614 | C7: 256.8509612 | D7: 269.649842 | E7: 279.4824369 | F7: 300.5660857 | G7: 331.5717858
A8: Chandigarh | B8: 18.76855119 | C8: 20.28553849 | D8: 22.10508266 | E8: 22.95559257 | F8: 24.5371829 | G8: 26.67902513
A9: Chattisgarh | B9: 158.07383 | C9: 165.936504 | D9: 182.228983 | E9: 196.02301 | F9: 209.0117154 | G9: 223.9319988
A10: Delhi | B10: 343.7975013 | C10: 366.6283663 | D10: 392.9083826 | E10: 428.8992377 | F10: 474.0577157 | G10: 514.8707942
A11: Goa | B11: 42.36665649 | C11: 35.85022048 | D11: 31.56846229 | E11: 40.11649146 | F11: 44.71727959 | G11: 51.847
A12: Gujarat | B12: 615.6060699 | C12: 682.6502122 | D12: 734.2838663 | E12: 811.427644 | F12: 894.6672329 | G12: 984.5975153
A13: Haryana | B13: 297.5385207 | C13: 320.5695197 | D13: 346.7993241 | E13: 366.6358672 | F13: 399.6459371 | G13: 434.6079272
A14: Himachal Pradesh | B14: 72.7198451 | C14: 77.38427436 | D14: 82.84669177 | E14: 89.06803536 | F14: 97.20666031 | G14: 103.9139441
A15: Jammu & Kashmir | B15: 78.25554808 | C15: 80.77493504 | D15: 85.0872264 | E15: 84.82360526 | F15: 97.2892706 | G15: 102.206
A16: Jharkhand | B16: 150.91759 | C16: 163.25027 | D16: 165.81626 | E16: 186.53439 | F16: 197.5356 | G16: 212.72058
A17: Karnataka | B17: 606.0098105 | C17: 643.2922129 | D17: 704.8486863 | E17: 751.9077032 | F17: 813.4974092 | G17: 874.3947912
A18: Kerala | B18: 364.0478894 | C18: 387.6934583 | D18: 402.7813308 | E18: 419.9555534 | F18: 447.6923652 | G18: 480.8779076
A19: Madhya Pradesh | B19: 315.56159 | C19: 351.68262 | D19: 365.13394 | E19: 384.10515 | F19: 407.97001 | G19: 465.13553
A20: Maharashtra | B20: 1275.94788 | C20: 1352.470709 | D20: 1451.207585 | E20: 1530.211005 | F20: 1659.77605 | G20: 1815.498
A21: Manipur | B21: 12.9146058 | C21: 12.9849626 | D21: 14.1162011 | E21: 15.09994 | F21: 15.8563922 | G21: 16.989
A22: Meghalaya | B22: 19.91774372 | C22: 20.35356537 | D22: 20.72570625 | E22: 20.15833082 | F22: 21.75648569 | G22: 23.08941635
A23: Mizoram | B23: 7.25869 | C23: 7.77797 | D23: 9.038414997 | E23: 11.26104886 | F23: 12.487734 | G23: 13.789
A24: Nagaland | B24: 12.17674187 | C24: 12.86789629 | D24: 13.79258526 | E24: 14.39876914 | F24: 14.85110973 | G24: 15.511
A25: Odisha | B25: 230.9870736 | C25: 243.3634759 | D25: 265.8915172 | E25: 270.6699362 | F25: 292.7923997 | G25: 323.2177272
A26: Puducherry | B26: 16.81801 | C26: 17.31043 | D26: 19.17025 | E26: 18.20665247 | F26: 20.03237 | G26: 21.98961
A27: Punjab | B27: 266.6282913 | C27: 280.8228515 | D27: 299.4497289 | E27: 312.0252066 | F27: 328.9731518 | G27: 348.4866337
A28: Rajasthan | B28: 434.836638 | C28: 454.5643399 | D28: 486.2301831 | E28: 521.7003646 | F28: 558.1443281 | G28: 599.0294427
A29: Sikkim | B29: 11.16509684 | C29: 11.42120536 | D29: 12.11404796 | E29: 13.07097091 | F29: 14.08684154 | G29: 15.09524305
A30: Tamil Nadu | B30: 751.4857604 | C30: 792.1637882 | D30: 852.2133395 | E30: 893.8956876 | F30: 948.6738458 | G30: 1019.078003
A31: Telangana | B31: 359.43411 | C31: 369.26235 | D31: 388.69391 | E31: 415.21014 | F31: 452.06329 | G31: 497.95744
A32: Tripura | B32: 19.20841 | C32: 20.87297 | D32: 22.81911 | E32: 24.81424 | F32: 27.8203 | G32: 29.146
A33: Uttar Pradesh | B33: 724.05039 | C33: 758.20497 | D33: 802.06969 | E33: 834.43236 | F33: 901.64491 | G33: 966.6185774
A34: Uttarakhand | B34: 115.327587 | C34: 123.710061 | D34: 134.1823537 | E34: 141.2776437 | F34: 151.9007261 | G34: 162.450718
A35: West Bengal | B35: 520.485 | C35: 542.191 | D35: 558.497 | E35: 574.364 | F35: 609.545 | G35: 657.883
A38: Source: RBI Handbook of Statistics on Indian States
A39: https://m.rbi.org.in/Scripts/AnnualPublications.aspx?head=Handbook+of+Statistics+on+Indian+States
A41: For WB and some other states in 2016-17, it is CMIE's States of India Database
A42: For Tripura, in 2016-17, it is Tripura's economic statistics document

Sheet GDP and GSDP by State
A1: ="Linear Relationship Between GDP and GSDP for "&'User Inputs'!$D$3 -> Linear Relationship Between GDP and GSDP for Karnataka
A2: State | B2: ='User Inputs'!D3 -> Karnataka
A4: Year | B4: GDP | C4: GSDP
A5: 2011-12 | B5: 8736.329 | C5: =VLOOKUP($B$2,'GSDP by State'!$A$2:$G$35,MATCH('GDP and GSDP by State'!A5,'GSDP by State'!$A$2:$G$2,0),0) -> 606.0098105
A6: 2012-13 | B6: 9213.017 | C6: =VLOOKUP($B$2,'GSDP by State'!$A$2:$G$35,MATCH('GDP and GSDP by State'!A6,'GSDP by State'!$A$2:$G$2,0),0) -> 643.2922129
A7: 2013-14 | B7: 9801.37 | C7: =VLOOKUP($B$2,'GSDP by State'!$A$2:$G$35,MATCH('GDP and GSDP by State'!A7,'GSDP by State'!$A$2:$G$2,0),0) -> 704.8486863
A8: 2014-15 | B8: 10527.674 | C8: =VLOOKUP($B$2,'GSDP by State'!$A$2:$G$35,MATCH('GDP and GSDP by State'!A8,'GSDP by State'!$A$2:$G$2,0),0) -> 751.9077032
A9: 2015-16 | B9: 11386.145 | C9: =VLOOKUP($B$2,'GSDP by State'!$A$2:$G$35,MATCH('GDP and GSDP by State'!A9,'GSDP by State'!$A$2:$G$2,0),0) -> 813.4974092 | E9: coefficients:
A10: 2016-17 | B10: 12196.006 | C10: =VLOOKUP($B$2,'GSDP by State'!$A$2:$G$35,MATCH('GDP and GSDP by State'!A10,'GSDP by State'!$A$2:$G$2,0),0) -> 874.3947912 | E10: slope | F10: =SLOPE(Table1[GSDP],Table1[GDP]) -> 0.07700049269
A11: 2017-18 | B11: 13012 | C11: =B11*$F$10+$F$11 -> 940.3734906 | E11: intercept | F11: =INTERCEPT(Table1[GSDP],Table1[GDP]) -> -61.55692025
A12: 2018-19 | B12: 13962 | C12: =B12*$F$10+$F$11 -> 1013.523959
A13: 2019-20 | B13: 15005 | C13: =B13*$F$10+$F$11 -> 1093.835473
A14: 2020-21 | B14: 16149 | C14: =B14*$F$10+$F$11 -> 1181.924036
A15: 2021-22 | B15: 17379 | C15: =B15*$F$10+$F$11 -> 1276.634642

Sheet Current SD+RC Rate by State
A1: Current Stamp Duty + Registration Charge Rates for Property Transactions
A2: States | B2: SD rates
A3: Andhra Pradesh | B3: 0.055
A4: Arunachal Pradesh | B4: 0.06
A5: Assam | B5: 0.0825
A6: Bihar | B6: 0.06
A7: Chandigarh | B7: 0.07
A8: Chattisgarh | B8: 0.085
A9: Delhi | B9: 0.04
A10: Goa | B10: 0.08
A11: Gujarat | B11: 0.0455
A12: Himachal Pradesh | B12: 0.08
A13: Haryana | B13: 0.06
A14: Jharkhand | B14: 0.07
A15: Jammu & Kashmir | B15: 0.05
A16: Karnataka | B16: 0.076 | D16: <- also 1% SD on mortgage added
A17: Kerala | B17: 0.085
A18: Manipur | B18: 0.07
A19: Meghalaya | B19: 0.099
A20: Maharashtra | B20: 0.05
A21: Mizoram | B21: 0.06
A22: Madhya Pradesh | B22: 0.09
A23: Nagaland | B23: 0.07
A24: Odisha | B24: 0.09
A25: Punjab | B25: 0.07
A26: Puducherry | B26: 0.08
A27: Rajasthan | B27: 0.05
A28: Sikkim | B28: 0.07
A29: Tamil Nadu | B29: 0.08
A30: Telengana | B30: 0.055
A31: Tripura | B31: 0.05
A32: Uttarakhand | B32: 0.04
A33: Uttar Pradesh | B33: 0.06
A34: West Bengal | B34: 0.06905457619

Sheet SD as Pct of GSDP
A1: Stamp Duty Revenues as % of State GSDP
A2: State | B2: SD as % of GSDP
A3: Andhra Pradesh | B3: 0.012695846
A4: Arunachal Pradesh | B4: 0.0001849395927
A5: Assam | B5: 0.001355459861
A6: Bihar | B6: 0.005869270314
A7: Chattisgarh | B7: 0.005797331153
A8: Delhi | B8: 0.007544730273
A9: Goa | B9: 0.005827809515
A10: Gujarat | B10: 0.005987432645
A11: Himachal Pradesh | B11: 0.002579861303
A12: Haryana | B12: 0.009624614932
A13: Jharkhand | B13: 0.002568495345
A14: Jammu & Kashmir | B14: 0.0019798133
A15: Karnataka | B15: 0.0105235323
A16: Kerala | B16: 0.009431991107
A17: Manipur | B17: 0.0004454025142
A18: Meghalaya | B18: 0.0006721486451
A19: Maharashtra | B19: 0.01169599682
A20: Mizoram | B20: 6.852957994e-05
A21: Madhya Pradesh | B21: 0.00876390755
A22: Nagaland | B22: 0.000117380088
A23: Odisha | B23: 0.002537966679
A24: Punjab | B24: 0.01124344857
A25: Puducherry | B25: 0.003695869919
A26: Rajasthan | B26: 0.006683951395
A27: Sikkim | B27: 0.0009945295265
A28: Tamil Nadu | B28: 0.009380408011
A29: Tripura | B29: 0.001391739422
A30: Uttarakhand | B30: 0.007672804971
A31: Uttar Pradesh | B31: 0.01073025308
A32: West Bengal | B32: 0.005055538092
A34: Source: SD data and State GSDP data from RBI's Handbook of Statistics on Indian States and CMIE's States of India Database
